bitfinex/quotes_SOLUSD_20250809
["timestamp","ask_amount","ask_price","bid_price","bid_amount"]
[1754761369229,0.69,181.52,181.51,74.66200881]
[1754761370521,0.69,181.52,181.51,43.15267049]
[1754761371882,0.69,181.52,181.51,4.03267049]
[1754761372033,6.42001181,181.52,181.51,4.03267049]
[1754761373050,11.92904662,181.52,181.51,4.03267049]
[1754761374034,6.42001181,181.52,181.51,4.03267049]
[1754761376761,0.69,181.52,181.51,4.03267049]
[1754761376965,6.42001181,181.52,181.51,4.03267049]
[1754761377649,0.69,181.52,181.51,4.03267049]
[1754761378134,0.69,181.52,181.51,4.03485086]
[1754761378535,6.42001181,181.52,181.51,4.03485086]
[1754761380664,6.42001181,181.52,181.51,4.03565959]
[1754761381169,11.92904662,181.52,181.51,4.03565959]
[1754761381939,6.19903481,181.52,181.51,4.03565959]
[1754761382140,11.92904662,181.52,181.51,4.03565959]
[1754761382662,11.92904662,181.52,181.5,0.06]
[1754761382867,0.67,181.51,181.5,0.06]
[1754761383050,0.67,181.51,181.5,4.09525995]
[1754761383779,11.90935013,181.51,181.5,4.09525995]
[1754761384479,11.90935013,181.51,181.5,4.09477535]
[1754761384675,11.90935013,181.51,181.5,0.06]
[1754761386687,6.40001181,181.51,181.5,4.09364696]
[1754761386855,0.67,181.51,181.5,4.09364696]
[1754761387181,0.67,181.51,181.5,0.06]
[1754761387182,6.40001181,181.51,181.5,0.06]
[1754761387479,6.40001181,181.51,181.5,4.09320035]
[1754761389775,5.73001181,181.51,181.5,4.09320035]
[1754761389982,6.40001181,181.51,181.5,0.06]
[1754761390166,6.40001181,181.51,181.5,4.09394731]
[1754761390483,6.40001181,181.51,181.5,0.06]
[1754761390775,5.73001181,181.51,181.5,4.09406329]
[1754761391383,6.40001181,181.51,181.5,4.09406329]
[1754761391762,6.40001181,181.51,181.5,4.09341724]
[1754761391958,11.90935013,181.51,181.5,4.09341724]
[1754761392157,11.90935013,181.51,181.5,0.06]
[1754761396464,11.90935013,181.51,181.48,0.06]
[1754761396666,5.73001181,181.49,181.48,0.06]
[1754761396868,5.73001181,181.49,181.46,0.06]
[1754761397175,11.24056451,181.47,181.46,0.06]
[1754761397874,11.91056451,181.47,181.46,0.06]
[1754761398869,5.73001181,181.47,181.46,0.06]
[1754761399678,5.73001181,181.47,181.46,0.71]
[1754761400072,5.73001181,181.47,181.46,0.06]
[1754761401687,6.40001181,181.47,181.46,0.06]
[1754761401986,11.91056451,181.47,181.46,0.06]
[1754761402471,0.67,181.47,181.46,0.06]
[1754761402669,11.91056451,181.47,181.46,0.06]
[1754761403788,6.40001181,181.47,181.46,0.06]
[1754761404672,11.91056451,181.47,181.46,0.06]
[1754761405495,6.40001181,181.47,181.46,0.06]
[1754761407207,11.91056451,181.47,181.46,0.06]
[1754761408585,50.99056451,181.47,181.46,0.06]
[1754761412407,53.19740051,181.47,181.46,0.06]
[1754761414209,58.92741232,181.47,181.44,0.06]
[1754761414523,5.73001181,181.45,181.44,0.06]
[1754761415308,44.81001181,181.45,181.44,0.75]
[1754761415506,50.3211719,181.45,181.44,0.75]
[1754761416311,50.3211719,181.45,181.44,0.06]
[1754761418004,44.59116009,181.45,181.44,0.75]
[1754761418205,50.3211719,181.45,181.44,0.06]
[1754761419411,50.9711719,181.45,181.44,0.06]
[1754761419803,56.70118371,181.45,181.44,0.06]
[1754761421206,41.287201,181.45,181.44,0.06]
[1754761421423,5.73001181,181.45,181.44,0.06]
[1754761421608,44.81001181,181.45,181.44,0.06]
[1754761423803,50.3211719,181.45,181.44,0.06]
[1754761424629,50.9711719,181.45,181.44,0.06]
[1754761426124,44.59116009,181.45,181.44,0.06]
[1754761426321,44.81001181,181.45,181.44,0.06]
[1754761427811,50.3211719,181.45,181.44,0.06]
[1754761429829,39.08,181.45,181.44,0.75]
[1754761430045,2.236714,181.48,181.44,0.75]
[1754761430200,5.73001181,181.47,181.44,0.75]
[1754761430404,44.82001181,181.48,181.45,4.03806998]
[1754761430603,44.82001181,181.48,181.46,0.69]
[1754761430837,44.82001181,181.48,181.44,0.06]
[1754761431011,44.82001181,181.48,181.47,0.69]
[1754761431211,44.82001181,181.48,181.45,0.69]
[1754761431526,5.73001181,181.47,181.45,0.69]
[1754761432107,6.38001181,181.46,181.44,0.06]
[1754761432308,5.73001181,181.45,181.44,0.06]
[1754761432528,5.73001181,181.45,181.44,4.09995321]
[1754761433430,11.8911719,181.45,181.44,0.06]
[1754761434030,6.38001181,181.45,181.44,4.10136464]
[1754761434222,11.8911719,181.45,181.44,0.06]
[1754761436727,6.16116009,181.45,181.44,0.06]
[1754761436928,11.8911719,181.45,181.44,0.06]
[1754761437835,5.73001181,181.45,181.44,0.06]
[1754761438039,44.79001181,181.45,181.44,0.06]
[1754761438540,39.06,181.45,181.44,4.79559173]
[1754761438948,44.79001181,181.45,181.44,4.10559173]
[1754761439466,50.9711719,181.45,181.44,4.10559173]
[1754761439744,50.9711719,181.45,181.44,0.06]
[1754761440139,50.9711719,181.45,181.44,4.10740523]
[1754761440437,50.9711719,181.45,181.44,0.06]
[1754761444253,56.70118371,181.45,181.44,0.06]
[1754761444454,56.70118371,181.45,181.42,0.06]
[1754761444622,5.73001181,181.43,181.42,0.06]
[1754761444822,44.79001181,181.43,181.42,0.06]
[1754761445041,45.46001181,181.43,181.42,0.06]
[1754761446252,50.97177943,181.43,181.42,0.06]
[1754761448648,50.30177943,181.43,181.42,0.06]
[1754761448974,50.97177943,181.43,181.42,0.06]
[1754761450566,50.30177943,181.43,181.42,0.06]
[1754761451162,50.97177943,181.43,181.42,0.06]
[1754761457576,44.79001181,181.43,181.42,0.06]
[1754761457947,50.30177943,181.43,181.42,0.06]
[1754761459683,50.97177943,181.43,181.42,0.06]
[1754761460760,50.30177943,181.43,181.42,0.06]
[1754761462385,44.79001181,181.44,181.42,4.76662929]
[1754761462685,44.79001181,181.44,181.43,4.70662929]
[1754761464197,44.79001181,181.44,181.43,4.04662929]
[1754761464405,44.79001181,181.44,181.43,4.04545903]
[1754761465492,44.79001181,181.44,181.43,4.70545903]
[1754761465990,44.79001181,181.44,181.43,4.04545903]
[1754761467892,50.97147565,181.44,181.43,4.04545903]
[1754761468191,56.70148746,181.44,181.42,0.06]
[1754761468392,6.40001181,181.43,181.42,0.06]
[1754761469284,11.91177943,181.43,181.42,0.06]
[1754761472105,0.03,181.44,181.42,0.06]
[1754761472307,44.79001181,181.43,181.42,0.06]
[1754761472609,44.79001181,181.43,181.42,4.10771446]
[1754761474466,44.79001181,181.43,181.42,4.79771446]
[1754761474997,39.06,181.43,181.42,4.79771446]
[1754761475195,44.80001181,181.44,181.42,4.79771446]
[1754761475374,44.80001181,181.44,181.43,4.04771446]
[1754761476470,39.07,181.44,181.43,4.73771446]
[1754761476670,5.76001181,181.44,181.43,4.04771446]
[1754761478705,6.47001181,181.44,181.43,4.04771446]
[1754761478907,6.47001181,181.44,181.43,4.04927416]
[1754761479798,5.76001181,181.44,181.43,4.04927416]
[1754761482007,6.47001181,181.44,181.43,4.04927416]
[1754761482972,11.98147565,181.44,181.43,4.04927416]
[1754761483385,11.98147565,181.44,181.42,0.06]
[1754761483707,45.48001181,181.43,181.42,0.06]
[1754761483903,45.48001181,181.43,181.42,4.11000191]
[1754761485095,44.77001181,181.43,181.42,4.80000191]
[1754761485907,44.77001181,181.43,181.42,4.11000191]
[1754761492717,45.48001181,181.43,181.42,4.11000191]
[1754761493092,44.77001181,181.43,181.42,4.11000191]
[1754761493496,44.77001181,181.43,181.42,0.06]
[1754761493816,44.77001181,181.43,181.42,4.10941828]
[1754761495320,45.48001181,181.43,181.42,4.10941828]
[1754761495820,39.75,181.43,181.42,4.10941828]
[1754761496018,45.48001181,181.43,181.42,4.10941828]
[1754761497505,50.99177943,181.43,181.42,0.06]
[1754761498722,57.69553798,181.43,181.42,0.06]
[1754761500515,26.0,181.41,181.4,0.06]
[1754761500824,77.45862541,181.41,181.4,0.06]
[1754761501015,225.72862541,181.41,181.38,0.06]
[1754761501211,26.0,181.37,181.29,0.69]
[1754761501408,78.54472166,181.37,181.29,0.69]
[1754761501610,5.73001181,181.35,181.3,4.05860358]
[1754761501922,5.51480725,181.33,181.31,4.05860358]
[1754761502098,39.02,181.32,181.28,0.69]
[1754761502298,39.02,181.32,181.29,4.05676029]
[1754761502498,39.02,181.32,181.3,4.05676029]
[1754761502707,39.02,181.32,181.29,0.69]
[1754761502926,5.73001181,181.3,181.29,0.69]
[1754761503109,44.75001181,181.3,181.29,4.0513563]
[1754761503313,44.75001181,181.3,181.26,0.69]
[1754761503524,39.02,181.3,181.27,4.04727192]
[1754761503820,39.02,181.3,181.28,0.69]
[1754761504028,5.73001181,181.29,181.28,0.69]
[1754761504241,44.75001181,181.29,181.28,4.04771478]
[1754761504426,44.75001181,181.29,181.24,5.73001181]
[1754761504628,44.75001181,181.29,181.25,4.04430707]
[1754761504809,5.73001181,181.28,181.26,4.73430707]
[1754761505009,5.73001181,181.28,181.27,4.73430707]
[1754761505720,5.73001181,181.28,181.27,4.04430707]
[1754761506304,5.73001181,181.28,181.26,4.04430707]
[1754761506603,5.73001181,181.28,181.27,4.04430707]
[1754761506803,39.02,181.29,181.27,4.04430707]
[1754761507005,5.73001181,181.28,181.27,4.04430707]
[1754761507230,5.73001181,181.28,181.26,0.69]
[1754761508101,5.73001181,181.28,181.24,6.20749207]
[1754761508329,5.73001181,181.28,181.25,4.7277335]
[1754761508499,39.02,181.29,181.26,4.7277335]
[1754761508701,5.73001181,181.28,181.26,0.69]
[1754761511923,5.73001181,181.28,181.24,5.51749207]
[1754761512231,0.67,181.28,181.25,4.03137111]
[1754761512431,5.73001181,181.26,181.23,0.06]
[1754761512634,5.73001181,181.26,181.23,4.09092786]
[1754761512825,5.73001181,181.26,181.23,10.29870221]
[1754761513006,5.73001181,181.26,181.23,6.26777435]
[1754761513207,5.73001181,181.27,181.24,0.69]
[1754761514112,39.02,181.28,181.26,0.06]
[1754761514309,5.73001181,181.28,181.26,0.06]
[1754761514555,5.73001181,181.27,181.26,0.06]
[1754761516428,39.69,181.29,181.26,0.06]
[1754761516639,5.73001181,181.27,181.26,0.06]
[1754761517007,5.73001181,181.28,181.26,0.06]
[1754761517213,6.40001181,181.27,181.26,0.06]
[1754761518736,5.73001181,181.27,181.26,0.06]
[1754761522023,6.40001181,181.27,181.26,0.06]
[1754761524746,26.0,181.34,181.26,6.48001181]
[1754761524934,5.73001181,181.31,181.27,5.73001181]
[1754761525137,5.73001181,181.31,181.28,0.69]
[1754761526318,6.40001181,181.31,181.27,5.51654979]
[1754761526520,6.40001181,181.31,181.27,6.20654979]
[1754761527330,5.73001181,181.31,181.28,0.69]
[1754761527530,44.75001181,181.32,181.28,0.69]
[1754761527732,5.73001181,181.31,181.28,0.69]
[1754761527942,6.40001181,181.31,181.27,11.2465616]
[1754761528129,6.40001181,181.3,181.27,5.51654979]
[1754761528335,5.73001181,181.28,181.26,0.06]
[1754761528542,5.73001181,181.27,181.26,0.06]
[1754761528741,0.67,181.27,181.26,0.06]
[1754761528935,45.42001181,181.27,181.26,0.06]
[1754761529720,0.67,181.27,181.26,0.06]
[1754761529924,44.73001181,181.27,181.26,0.06]
[1754761530329,39.0,181.27,181.26,0.06]
[1754761530533,5.73001181,181.27,181.26,0.06]
[1754761531156,44.73001181,181.28,181.26,0.06]
[1754761531454,5.73001181,181.29,181.26,0.75]
[1754761531751,44.73001181,181.29,181.26,0.75]
[1754761532744,5.73001181,181.28,181.26,0.06]
[1754761532956,5.73001181,181.27,181.26,0.06]
[1754761533157,39.0,181.29,181.26,0.06]
[1754761533364,5.73001181,181.29,181.26,0.06]
[1754761533558,5.73001181,181.29,181.26,0.75]
[1754761533736,6.45001181,181.29,181.26,0.06]
[1754761533936,5.73001181,181.28,181.26,0.06]
[1754761534855,39.0,181.3,181.26,0.06]
[1754761535165,6.45001181,181.29,181.26,0.06]
[1754761535368,5.73001181,181.28,181.26,4.08946165]
[1754761535550,0.72,181.27,181.26,0.06]
[1754761535961,39.0,181.3,181.26,0.06]
[1754761535962,5.73001181,181.28,181.26,4.09104353]
[1754761536153,5.73001181,181.28,181.26,0.06]
[1754761536650,0.72,181.29,181.26,4.09163512]
[1754761536843,5.73001181,181.28,181.26,4.09163512]
[1754761537365,6.45001181,181.27,181.26,0.06]
[1754761537568,0.72,181.27,181.26,0.06]
[1754761537780,6.45001181,181.27,181.26,0.06]
[1754761538546,6.45001181,181.27,181.26,4.09867436]
[1754761538866,6.45001181,181.27,181.26,0.06]
[1754761539440,6.45001181,181.27,181.26,4.09852705]
[1754761540755,5.73001181,181.27,181.26,4.09852705]
[1754761540957,44.73001181,181.28,181.26,4.09852705]
[1754761541273,44.73001181,181.28,181.27,4.03852705]
[1754761541645,11.96634014,181.28,181.27,4.03852705]
[1754761541851,6.45001181,181.28,181.27,4.03852705]
[1754761543164,11.96634014,181.28,181.27,4.03852705]
[1754761544454,11.96634014,181.28,181.26,0.06]
[1754761544756,45.45001181,181.27,181.26,0.06]
[1754761544964,45.45001181,181.27,181.26,4.09556587]
[1754761545556,50.96664445,181.27,181.26,4.09556587]
[1754761547553,56.69665626,181.27,181.26,0.06]
[1754761548346,71.80287183,181.27,181.26,1e-08]
[1754761548654,76.96664445,181.27,181.26,1e-08]
[1754761550151,97.80287183,181.27,181.26,1e-08]
[1754761550473,99.86722087,181.27,181.26,1e-08]
[1754761550671,58.80287183,181.27,181.26,1e-08]
[1754761550972,76.96664445,181.27,181.26,1e-08]
[1754761551266,37.96664445,181.27,181.26,1e-08]
[1754761551469,76.96664445,181.27,181.26,1e-08]
[1754761553744,97.80287183,181.27,181.26,1e-08]
[1754761554945,97.80287183,181.27,181.24,0.06]
[1754761554946,41.10621557,181.25,181.24,0.06]
[1754761555150,59.83622738,181.25,181.24,1e-08]
[1754761555382,60.55622738,181.25,181.24,1e-08]
[1754761556093,26.0,181.22,181.2,0.06]
[1754761556296,44.71001181,181.21,181.2,0.06]
[1754761556470,45.43001181,181.21,181.2,0.06]
[1754761557000,50.94847105,181.21,181.2,0.06]
[1754761557302,11.24847105,181.21,181.2,0.06]
[1754761557684,50.24847105,181.21,181.2,0.06]
[1754761557893,50.96847105,181.21,181.2,0.06]
[1754761558606,66.07468662,181.21,181.2,0.06]
[1754761560308,11.96847105,181.21,181.2,0.06]
[1754761560602,11.24847105,181.21,181.2,0.06]
[1754761560806,50.22847105,181.21,181.2,0.06]
[1754761561310,50.93847105,181.21,181.2,0.06]
[1754761561785,50.22847105,181.21,181.2,0.06]
[1754761562392,50.93847105,181.21,181.2,0.06]
[1754761564185,45.20845924,181.21,181.2,0.06]
[1754761564387,50.93847105,181.21,181.2,0.06]
[1754761565473,45.20845924,181.21,181.2,0.06]
[1754761565674,92.04468662,181.21,181.2,0.06]
[1754761568310,53.06468662,181.21,181.2,0.06]
[1754761568475,76.22847105,181.21,181.2,0.06]
[1754761569897,76.93847105,181.21,181.2,0.06]
[1754761570209,76.22847105,181.21,181.2,0.06]
[1754761571801,31.73001181,181.21,181.2,0.06]
[1754761571996,76.22847105,181.21,181.2,0.74]
[1754761572199,76.22847105,181.21,181.2,0.06]
[1754761572576,50.22847105,181.21,181.2,0.06]
[1754761573806,26.0,181.23,181.2,0.06]
[1754761574017,5.73001181,181.21,181.2,0.74]
[1754761574487,5.73001181,181.21,181.2,0.06]
[1754761575780,11.95847105,181.21,181.2,0.06]
[1754761582686,11.24847105,181.21,181.2,0.06]
[1754761582886,50.22847105,181.21,181.2,0.74]
[1754761583311,44.71001181,181.21,181.2,0.74]
[1754761584203,44.71001181,181.21,181.2,0.06]
[1754761585485,50.22847105,181.21,181.2,0.06]
[1754761586691,44.49845924,181.21,181.2,0.06]
[1754761586893,50.22847105,181.21,181.2,0.06]
[1754761588421,44.71001181,181.21,181.2,0.74]
[1754761589799,38.98,181.21,181.2,0.74]
[1754761589995,38.98,181.21,181.2,4.7663419]
[1754761590287,0.03,181.24,181.2,4.7663419]
[1754761590496,0.03,181.24,181.21,10.46635371]
[1754761590704,38.99,181.24,181.22,4.0263419]
[1754761590906,38.99,181.24,181.23,4.7363419]
[1754761591298,0.03,181.24,181.23,4.7363419]
[1754761593899,0.03,181.24,181.23,15.98420395]
[1754761594699,0.03,181.24,181.23,4.7363419]
[1754761595096,0.03,181.24,181.23,10.25419214]
[1754761595290,0.03,181.24,181.23,4.7363419]
[1754761595703,0.03,181.24,181.23,4.0263419]
[1754761596708,45.42001181,181.24,181.23,4.0263419]
[1754761597020,45.42001181,181.24,181.2,0.06]
[1754761597193,5.73001181,181.23,181.21,4.02162272]
[1754761597400,44.69001181,181.22,181.2,0.06]
[1754761597597,38.96,181.22,181.21,4.02251969]
[1754761597797,44.69001181,181.22,181.21,4.02251969]
[1754761599200,38.96,181.22,181.21,4.02251969]
[1754761599420,44.69001181,181.22,181.21,4.02251969]
[1754761599920,45.39001181,181.22,181.2,0.06]
[1754761600121,6.43001181,181.21,181.2,0.06]
[1754761600426,6.43001181,181.21,181.2,4.08360973]
[1754761601827,11.94847105,181.21,181.2,4.08360973]
[1754761602902,11.94847105,181.21,181.2,0.06]
[1754761603329,44.47823083,181.22,181.2,0.06]
[1754761603715,5.73001181,181.21,181.2,0.06]
[1754761605548,38.94,181.21,181.2,0.06]
[1754761605747,44.67001181,181.21,181.2,4.08387944]
[1754761606110,5.73001181,181.21,181.2,4.08382217]
[1754761606409,44.67001181,181.21,181.2,4.08382217]
[1754761607028,44.67001181,181.21,181.2,0.06]
[1754761607230,50.88847105,181.21,181.2,0.06]
[1754761609652,50.18847105,181.21,181.2,0.06]
[1754761610149,45.15845924,181.21,181.2,0.06]
[1754761610447,50.88847105,181.21,181.2,0.06]
[1754761614322,50.18847105,181.21,181.2,0.06]
[1754761614742,44.67001181,181.21,181.2,0.06]
[1754761618143,44.67001181,181.21,181.2,4.08514279]
[1754761618658,38.94,181.21,181.2,4.79514279]
[1754761619136,0.03,181.23,181.2,16.04391839]
[1754761619336,38.94,181.22,181.21,4.67514279]
[1754761620154,38.94,181.22,181.21,10.19360203]
[1754761620337,0.03,181.23,181.21,10.19360203]
[1754761620652,0.03,181.23,181.22,4.67514279]
[1754761621041,0.03,181.23,181.22,10.4051546]
[1754761622444,0.03,181.23,181.22,15.92330932]
[1754761624657,0.03,181.23,181.22,31.02952489]
[1754761626473,0.03,181.24,181.23,15.10621557]
[1754761626774,0.03,181.24,181.23,25.51137017]
[1754761627568,0.03,181.26,181.25,41.10621557]
[1754761627869,0.03,181.26,181.25,50.86137017]
[1754761628040,0.03,181.26,181.25,51.51137017]
[1754761628883,0.03,181.26,181.25,57.02861154]
[1754761635956,0.73,181.26,181.25,41.27239597]
[1754761636201,0.73,181.26,181.25,35.54238416]
[1754761636359,0.73,181.26,181.25,41.27239597]
[1754761636698,0.73,181.26,181.25,15.27239597]
[1754761636990,0.73,181.26,181.25,4.02514279]
[1754761637395,0.73,181.26,181.23,5.73001181]
[1754761637548,0.73,181.26,181.24,4.01420302]
[1754761637875,0.73,181.26,181.24,26.0]
[1754761639514,0.7,181.25,181.24,26.0]
[1754761639730,0.7,181.25,181.24,30.0138276]
[1754761640572,0.7,181.25,181.24,30.01377283]
[1754761641715,6.43001181,181.25,181.21,50.14842345]
[1754761641899,5.73001181,181.25,181.22,4.01412486]
[1754761642208,0.7,181.25,181.22,9.74413667]
[1754761642404,0.7,181.25,181.23,4.01412486]
[1754761643009,0.7,181.24,181.23,4.01412486]
[1754761643500,0.7,181.24,181.22,11.24809208]
[1754761643704,0.7,181.24,181.22,5.51808027]
[1754761643912,0.7,181.23,181.21,11.24842052]
[1754761644090,5.73001181,181.25,181.22,4.0150081]
[1754761644612,0.7,181.24,181.22,4.0150081]
[1754761644809,6.43001181,181.24,181.22,4.0150081]
[1754761645117,6.43001181,181.23,181.22,4.0150081]
[1754761645710,6.43001181,181.23,181.21,4.0150081]
[1754761645895,5.51724137,181.25,181.22,4.0150081]
[1754761646115,5.73001181,181.23,181.2,0.06]
[1754761646317,5.73001181,181.22,181.21,4.01522979]
[1754761646526,6.43001181,181.22,181.21,4.01522979]
[1754761646722,0.7,181.22,181.2,0.06]
[1754761646914,0.7,181.22,181.2,9.59396714]
[1754761647112,5.73001181,181.23,181.21,4.01522979]
[1754761647430,5.73001181,181.23,181.2,0.06]
[1754761647630,0.7,181.22,181.2,4.07599613]
[1754761648332,0.7,181.22,181.21,4.01599613]
[1754761648500,0.7,181.22,181.2,4.07599613]
[1754761648704,0.7,181.22,181.21,4.01599613]
[1754761649304,0.7,181.22,181.2,4.07599613]
[1754761649531,0.7,181.22,181.21,4.01752764]
[1754761649807,6.43001181,181.22,181.2,4.07752764]
[1754761650013,5.73001181,181.22,181.21,4.01752764]
[1754761650311,5.73001181,181.22,181.2,0.06]
[1754761650517,5.73001181,181.22,181.2,4.07752764]
[1754761650734,0.73,181.26,181.21,0.7]
[1754761650911,6.43001181,181.25,181.21,0.7]
[1754761651312,0.7,181.24,181.2,11.30869615]
[1754761651528,0.7,181.24,181.21,4.01874715]
[1754761652327,5.73001181,181.25,181.21,9.53712029]
[1754761652529,0.03,181.26,181.24,5.73001181]
[1754761652713,0.03,181.26,181.25,9.7487256]
[1754761653108,0.03,181.26,181.25,10.4487256]
[1754761654013,0.03,181.26,181.25,15.96596697]
[1754761654331,0.03,181.26,181.25,10.23595516]
[1754761654539,0.03,181.26,181.25,15.26596697]
[1754761654832,6.46001181,181.26,181.25,4.01871379]
[1754761655129,6.46001181,181.26,181.22,37.24787482]
[1754761655337,0.7,181.25,181.23,4.01908944]
[1754761655533,0.7,181.25,181.24,4.01908944]
[1754761659139,0.03,181.26,181.24,4.01908944]
[1754761659437,0.73,181.26,181.25,4.01908944]
[1754761660124,0.03,181.26,181.25,4.01908944]
[1754761664239,0.03,181.26,181.25,15.96634262]
[1754761664943,0.03,181.26,181.25,31.07255819]
[1754761665313,0.03,181.26,181.25,31.62428232]
[1754761666239,0.03,181.26,181.25,37.35429413]
[1754761666538,0.03,181.26,181.25,31.62428232]
[1754761667934,0.03,181.26,181.25,33.83221432]
[1754761668239,0.03,181.26,181.25,31.62428232]
[1754761669529,0.03,181.26,181.25,31.07255819]
[1754761670133,0.03,181.26,181.25,27.05346875]
[1754761670437,0.03,181.26,181.25,31.0793278]
[1754761671947,0.03,181.28,181.27,15.10621557]
[1754761672146,0.03,181.28,181.27,64.27374969]
[1754761672348,0.03,181.28,181.27,64.97374969]
[1754761673951,0.03,181.28,181.27,70.49038233]
[1754761674654,0.03,181.28,181.27,72.69807033]
[1754761678261,1e-08,181.28,181.27,72.69807033]
[1754761679345,1e-08,181.28,181.27,75.39761663]
[1754761680961,1e-08,181.28,181.27,36.53761663]
[1754761681146,1e-08,181.28,181.27,75.37761663]
[1754761681950,1e-08,181.28,181.27,36.53761663]
[1754761682158,1e-08,181.28,181.27,75.37761663]
[1754761683959,1e-08,181.28,181.27,74.67761663]
[1754761686858,1e-08,181.28,181.27,35.83761663]
[1754761687048,1e-08,181.28,181.27,71.97807033]
[1754761687470,1e-08,181.28,181.27,72.03807033]
[1754761688648,1e-08,181.28,181.27,72.73807033]
[1754761689246,1e-08,181.28,181.27,75.51156168]
[1754761689660,1e-08,181.28,181.27,165.11156168]
[1754761689853,1e-08,181.28,181.27,164.55989842]
[1754761693257,1e-08,181.28,181.27,158.82988661]
[1754761693457,1e-08,181.28,181.27,164.55989842]
[1754761693970,1e-08,181.28,181.27,164.57744766]
[1754761694862,1e-08,181.28,181.27,163.87744766]
[1754761695070,1e-08,181.29,181.28,15.10621557]
[1754761695265,1e-08,181.29,181.28,25.4312685]
[1754761695779,1e-08,181.29,181.28,27.6385915]
[1754761696485,1e-08,181.29,181.28,33.15491983]
[1754761696689,0.70000001,181.29,181.28,32.603287]
[1754761696864,0.70000001,181.29,181.28,89.48595219]
[1754761698784,0.70000001,181.29,181.28,30.04340829]
[1754761700156,0.70000001,181.29,181.28,26.0]
[1754761700361,6.43001182,181.29,181.28,26.0]
[1754761700578,6.43001182,181.29,181.28,30.05233819]
[1754761700977,0.70000001,181.29,181.28,30.05233819]
[1754761701491,0.70000001,181.29,181.28,30.0537701]
[1754761703078,6.43001182,181.29,181.28,30.0537701]
[1754761703277,6.43001182,181.29,181.28,4.0537701]
[1754761703684,0.70000001,181.29,181.28,4.0537701]
[1754761704769,6.43001182,181.29,181.28,4.0537701]
[1754761706378,0.70000001,181.29,181.28,4.0537701]
[1754761706700,6.43001182,181.29,181.28,4.0537701]
[1754761707511,6.21602405,181.29,181.28,4.0537701]
[1754761707674,11.94603586,181.29,181.28,4.0537701]
[1754761708805,6.43001182,181.29,181.28,4.0537701]
[1754761710912,11.94603586,181.29,181.28,4.0537701]
[1754761712090,6.43001182,181.29,181.28,4.0537701]
[1754761713213,0.70000001,181.29,181.28,4.0537701]
[1754761713419,5.73001182,181.29,181.28,4.0537701]
[1754761714502,1e-08,181.29,181.28,4.0537701]
[1754761714815,1e-08,181.29,181.28,10.28540319]
[1754761716207,1e-08,181.29,181.28,31.12163057]
[1754761716421,1e-08,181.29,181.28,31.1199339]
[1754761719299,1e-08,181.29,181.28,24.67964118]
[1754761719626,0.66000001,181.29,181.28,9.57342561]
[1754761720397,1e-08,181.29,181.28,9.57342561]
[1754761721329,1e-08,181.29,181.28,31.11965299]
[1754761722908,1e-08,181.29,181.28,24.67964118]
[1754761723122,1e-08,181.29,181.28,30.40965299]
[1754761723726,1e-08,181.29,181.28,4.05709728]
[1754761724031,0.66000001,181.29,181.28,4.05709728]
[1754761724807,6.39001182,181.29,181.28,4.05709728]
[1754761725011,11.90603586,181.29,181.28,4.05709728]
[1754761725415,11.90603586,181.29,181.27,0.06]
[1754761725618,6.39001181,181.28,181.27,0.06]
[1754761725813,6.39001181,181.28,181.27,4.10209007]
[1754761726526,11.90634014,181.28,181.27,4.10107815]
[1754761728220,11.90634014,181.28,181.27,0.06]
[1754761731830,17.63635195,181.28,181.27,0.06]
[1754761732025,11.90634014,181.28,181.27,0.06]
[1754761733306,17.63635195,181.28,181.27,0.06]
[1754761733510,11.90634014,181.28,181.27,0.06]
[1754761734438,15.10621557,181.25,181.24,1e-08]
[1754761734739,59.63622738,181.25,181.23,0.06]
[1754761734934,21.49622738,181.24,181.23,0.06]
[1754761735118,23.70611138,181.24,181.23,0.06]
[1754761735318,23.70611138,181.24,181.21,0.06]